bitfinex-derivatives/quotes_BTCF0:USTF0_20250724
["timestamp","ask_amount","ask_price","bid_price","bid_amount"]
[1753395605258,0.03576,118630.0,118620.0,1.46900613]
[1753395605463,0.001,118630.0,118620.0,1.47000613]
[1753395606061,0.19030301,118640.0,118630.0,0.2089793]
[1753395606265,0.19030301,118640.0,118630.0,0.85141934]
[1753395606464,0.24825376,118640.0,118630.0,0.85141934]
[1753395606960,0.24825376,118640.0,118630.0,0.5697793]
[1753395607165,0.04530211,118650.0,118640.0,0.1929951]
[1753395607464,0.12233,118660.0,118650.0,0.1844409]
[1753395607756,0.24853087,118660.0,118650.0,0.85139094]
[1753395607963,0.24853087,118660.0,118650.0,1.46611094]
[1753395608959,0.24953087,118660.0,118650.0,1.46711094]
[1753395610167,0.24953087,118660.0,118650.0,1.1864709]
[1753395610367,0.24953087,118660.0,118650.0,1.46811094]
[1753395611071,0.41798757,118660.0,118650.0,1.46811094]
[1753395611368,0.24953087,118660.0,118650.0,1.46811094]
[1753395611967,0.27211959,118660.0,118650.0,1.1864709]
[1753395612160,0.27211959,118660.0,118650.0,0.85339094]
[1753395612362,0.27211959,118660.0,118650.0,0.5717509]
[1753395612565,0.27211959,118660.0,118650.0,0.85339094]
[1753395614568,0.44057649,118660.0,118650.0,0.85339094]
[1753395615868,0.44057649,118660.0,118650.0,0.49259094]
[1753395616178,1.08301653,118660.0,118650.0,0.002]
[1753395616368,1.25156853,118660.0,118650.0,0.002]
[1753395617467,1.29687064,118660.0,118650.0,0.002]
[1753395618081,1.0152306,118660.0,118650.0,0.002]
[1753395618271,1.29687064,118660.0,118650.0,0.002]
[1753395619177,1.25156853,118660.0,118650.0,0.002]
[1753395621984,1.29688346,118660.0,118650.0,0.002]
[1753395622386,1.25156853,118660.0,118650.0,0.002]
[1753395622686,1.08301653,118660.0,118650.0,0.002]
[1753395623186,1.31197135,118660.0,118650.0,0.002]
[1753395623390,0.2503899,118630.0,118620.0,0.59056613]
[1753395623585,0.92552862,118630.0,118620.0,0.59056613]
[1753395623792,1.0519786,118630.0,118620.0,0.59056613]
[1753395623982,1.0519786,118630.0,118620.0,0.95136613]
[1753395624688,1.0519786,118630.0,118620.0,0.95436613]
[1753395624877,1.0529786,118630.0,118620.0,0.95436613]
[1753395625079,1.0539786,118630.0,118620.0,0.95836613]
[1753395627993,1.0539786,118630.0,118620.0,0.67672609]
[1753395628188,1.0539786,118630.0,118620.0,0.51331233]
[1753395628992,1.0539786,118630.0,118620.0,0.23167229]
[1753395629495,1.0539786,118630.0,118620.0,0.51331233]
[1753395630790,1.0539786,118630.0,118620.0,0.23167229]
[1753395630991,1.0539786,118630.0,118620.0,0.51331233]
[1753395635903,1.0539786,118630.0,118620.0,0.87411233]
[1753395638103,1.0539786,118630.0,118620.0,0.51331233]
[1753395644012,1.0539786,118630.0,118620.0,0.23167229]
[1753395644613,1.0539786,118630.0,118620.0,0.51331233]
[1753395648215,1.0529786,118630.0,118620.0,0.51031233]
[1753395648411,1.0539786,118630.0,118620.0,0.51131233]
[1753395648715,1.0529786,118630.0,118620.0,0.50731233]
[1753395648918,1.0539786,118630.0,118620.0,0.50931233]
[1753395655013,1.0539786,118630.0,118620.0,0.87011233]
[1753395655711,1.0539786,118630.0,118620.0,0.50931233]
[1753395655918,1.0539786,118630.0,118620.0,0.87011233]
[1753395656819,1.0502466,118630.0,118620.0,0.87011233]
[1753395657318,0.4390066,118630.0,118620.0,0.87011233]
[1753395657516,1.0416866,118630.0,118620.0,0.87011233]
[1753395663125,0.4390066,118630.0,118620.0,0.87011233]
[1753395663425,1.0408066,118630.0,118620.0,0.87011233]
[1753395665924,1.0408066,118630.0,118620.0,0.50931233]
[1753395666925,1.0408066,118630.0,118620.0,0.87011233]
[1753395667120,1.0408066,118630.0,118620.0,1.01062309]
[1753395667622,0.8723067,118630.0,118620.0,1.01062309]
[1753395667827,1.0408066,118630.0,118620.0,1.22169849]
[1753395668128,1.0408066,118630.0,118620.0,1.01062309]
[1753395668430,1.04185951,118630.0,118620.0,1.01062309]
[1753395669122,1.04185951,118630.0,118620.0,0.86988905]
[1753395674741,1.04185951,118630.0,118620.0,0.58847229]
[1753395674941,1.04185951,118630.0,118620.0,0.86988905]
[1753395675142,1.68407627,118630.0,118620.0,0.003]
[1753395675342,1.68407627,118630.0,118620.0,0.1715141]
[1753395675535,1.68407627,118630.0,118620.0,0.003]
[1753395677041,1.72941012,118630.0,118620.0,0.003]
[1753395677247,0.2917641,118620.0,118610.0,0.1685275]
[1753395677439,0.95389049,118620.0,118610.0,0.1685275]
[1753395677636,0.79814923,118620.0,118610.0,0.1685275]
[1753395678444,0.80014923,118620.0,118610.0,0.1735275]
[1753395681246,0.84548308,118620.0,118610.0,0.1735275]
[1753395681644,0.84548308,118620.0,118590.0,0.03982]
[1753395681645,0.12325,118600.0,118590.0,0.03982]
[1753395681952,0.12325,118600.0,118590.0,0.48979346]
[1753395681953,1.03838493,118600.0,118590.0,0.48979346]
[1753395682749,1.03838493,118600.0,118590.0,0.49039346]
[1753395683049,1.03938493,118600.0,118590.0,0.49439346]
[1753395683450,1.04038493,118600.0,118590.0,0.49639346]
[1753395683750,0.43986493,118600.0,118590.0,0.49639346]
[1753395684050,1.04014493,118600.0,118590.0,0.49639346]
[1753395684551,1.04014493,118600.0,118590.0,0.49579346]
[1753395686950,1.04014493,118600.0,118590.0,0.2143767]
[1753395687153,1.40094493,118600.0,118590.0,0.49579346]
[1753395688246,1.40138718,118600.0,118590.0,0.49579346]
[1753395689855,1.04058718,118600.0,118590.0,0.49579346]
[1753395690553,1.40138718,118600.0,118590.0,0.2143767]
[1753395691057,1.40138718,118600.0,118590.0,0.49579346]
[1753395691754,1.40138718,118600.0,118590.0,0.04582]
[1753395691956,1.40138718,118600.0,118590.0,0.28741676]
[1753395692154,1.40138718,118600.0,118590.0,0.006]
[1753395697258,1.68280394,118600.0,118590.0,0.006]
[1753395697466,1.68280394,118600.0,118570.0,0.4456908]
[1753395697467,0.04857,118580.0,118570.0,0.97704726]
[1753395697665,0.8904609,118580.0,118570.0,0.61624726]
[1753395697964,1.01727882,118580.0,118570.0,0.61624726]
[1753395698261,1.01727882,118580.0,118570.0,0.61684726]
[1753395698760,1.01927882,118580.0,118570.0,0.62280726]
[1753395699964,1.02769558,118580.0,118570.0,0.62280726]
[1753395700163,1.09536093,118580.0,118570.0,0.62280726]
[1753395700763,1.02769558,118580.0,118570.0,0.62280726]
[1753395702864,1.02769558,118580.0,118570.0,0.58066176]
[1753395703167,1.04832479,118580.0,118570.0,0.58066176]
[1753395704067,1.04832479,118580.0,118570.0,0.299245]
[1753395704366,1.04832479,118580.0,118570.0,0.58066176]
[1753395705068,1.04832479,118580.0,118570.0,0.299245]
[1753395705271,1.11592209,118580.0,118570.0,0.58066176]
[1753395705972,1.75813885,118580.0,118570.0,0.02847]
[1753395706363,1.47672209,118580.0,118570.0,0.02847]
[1753395706571,1.47672209,118580.0,118570.0,0.005]
[1753395707269,1.89933349,118580.0,118570.0,0.005]
[1753395708577,1.68802779,118580.0,118570.0,0.005]
[1753395708777,1.89933349,118580.0,118570.0,0.005]
[1753395709078,1.47672209,118580.0,118570.0,0.005]
[1753395709277,1.75847841,118580.0,118570.0,0.005]
[1753395709977,1.47672209,118580.0,118570.0,0.1735851]
[1753395710173,1.47672209,118580.0,118570.0,0.005]
[1753395710479,1.47472209,118580.0,118570.0,0.1735851]
[1753395711071,0.87808209,118580.0,118570.0,0.1897151]
[1753395711277,1.47460209,118580.0,118570.0,0.49494142]
[1753395711481,1.47460209,118580.0,118570.0,0.2131851]
[1753395711679,1.47460209,118580.0,118570.0,0.49494142]
[1753395712480,0.87808209,118580.0,118570.0,0.49494142]
[1753395712670,1.11360209,118580.0,118570.0,0.49708142]
[1753395713376,1.11360209,118580.0,118570.0,0.49494142]
[1753395715583,1.11360209,118580.0,118570.0,0.2131851]
[1753395715773,1.11360209,118580.0,118570.0,0.49494142]
[1753395715972,1.11360209,118580.0,118570.0,0.02847]
[1753395716174,1.75615841,118580.0,118570.0,0.005]
[1753395716376,1.80149226,118580.0,118570.0,0.005]
[1753395717275,0.12087,118550.0,118540.0,0.89376102]
[1753395717474,0.90635271,118550.0,118540.0,0.93591792]
[1753395717681,1.0334765,118550.0,118540.0,0.93509792]
[1753395718189,1.0334765,118550.0,118540.0,0.93591792]
[1753395718386,1.0344765,118550.0,118540.0,0.94191792]
[1753395718584,1.0354765,118550.0,118540.0,0.94323792]
[1753395718881,1.0344765,118550.0,118540.0,0.93723792]
[1753395719087,1.0354765,118550.0,118540.0,0.94123792]
[1753395719485,1.0354765,118550.0,118540.0,0.6594816]
[1753395719686,1.0354765,118550.0,118540.0,0.94123792]
[1753395722691,0.844123,118550.0,118540.0,0.94123792]
[1753395723787,0.247883,118550.0,118540.0,0.94123792]
[1753395723985,0.843243,118550.0,118540.0,0.94123792]
[1753395725195,0.843123,118550.0,118540.0,0.94123792]
[1753395726287,1.0117365,118550.0,118540.0,0.94123792]
[1753395726889,0.843123,118550.0,118540.0,0.94123792]
[1753395727794,0.8432292,118550.0,118540.0,0.94123792]
[1753395729190,0.2479892,118550.0,118540.0,0.94123792]
[1753395729495,0.8274492,118550.0,118540.0,0.94123792]
[1753395730494,0.8274492,118550.0,118540.0,1.53563792]
[1753395731197,0.2328892,118550.0,118540.0,1.53563792]
[1753395731791,0.2493492,118550.0,118540.0,1.53563792]
[1753395732292,0.2493492,118550.0,118540.0,1.54801027]
[1753395736799,0.2493492,118550.0,118540.0,1.53563792]
[1753395742605,0.2493492,118550.0,118540.0,1.54802429]
[1753395747806,0.4179627,118550.0,118540.0,1.54802429]
[1753395748803,0.4428327,118550.0,118540.0,0.67186797]
[1753395749010,0.4428327,118550.0,118540.0,0.94123792]
[1753395749603,0.4428327,118550.0,118540.0,0.93991792]
[1753395749796,0.4428327,118550.0,118540.0,0.93909792]
[1753395750508,0.4428327,118550.0,118540.0,0.93938792]
[1753395752911,0.4428327,118550.0,118540.0,0.93984792]
[1753395754212,0.4428327,118550.0,118540.0,0.6580916]
[1753395754415,0.4428327,118550.0,118540.0,0.57904792]
[1753395754602,1.08538902,118550.0,118540.0,0.004]
[1753395754811,0.2684078,118540.0,118530.0,0.02287]
[1753395755108,1.67392118,118540.0,118530.0,0.02287]
[1753395755314,0.217892,118530.0,118520.0,0.2502469]
[1753395755516,0.31402741,118530.0,118520.0,0.53200322]
[1753395755716,0.44081906,118530.0,118520.0,0.2502469]
[1753395755911,0.44081906,118530.0,118520.0,0.53200322]
[1753395756809,0.44281906,118530.0,118520.0,0.53346322]
[1753395758318,0.44281906,118530.0,118520.0,0.2517069]
[1753395758506,0.44281906,118530.0,118520.0,0.53346322]
[1753395759321,0.44281906,118530.0,118520.0,0.2517069]
[1753395759522,0.44281906,118530.0,118520.0,0.53300322]
[1753395759920,0.45114969,118530.0,118520.0,0.53300322]
[1753395760117,0.44281906,118530.0,118520.0,0.53300322]
[1753395761124,0.45148521,118530.0,118520.0,0.53300322]
[1753395765128,0.45145935,118530.0,118520.0,0.53300322]
[1753395765420,0.45145935,118530.0,118520.0,0.2512469]
[1753395765626,0.45145935,118530.0,118520.0,0.53300322]
[1753395768422,1.04209935,118530.0,118520.0,0.53300322]
[1753395768624,0.8399212,118530.0,118520.0,1.17555954]
[1753395768815,0.1495012,118530.0,118520.0,1.17555954]
[1753395772120,0.12879165,118530.0,118520.0,1.17555954]
[1753395772329,0.14950388,118530.0,118520.0,1.17555954]
[1753395773331,0.12879165,118530.0,118520.0,1.17555954]
[1753395777031,0.03168,118550.0,118540.0,0.1845777]
[1753395777231,0.05240503,118550.0,118540.0,1.80269402]
[1753395777431,0.17846457,118550.0,118540.0,1.80269402]
[1753395778029,0.34707807,118550.0,118540.0,1.80269402]
[1753395778223,0.34807807,118550.0,118540.0,1.80269402]
[1753395778627,0.14778457,118550.0,118540.0,1.80269402]
[1753395779033,0.15278457,118550.0,118540.0,1.80269402]
[1753395780027,0.15278457,118550.0,118540.0,1.5209377]
[1753395780224,0.38015807,118550.0,118540.0,1.80269402]
[1753395780425,0.41912807,118550.0,118540.0,1.80269402]
[1753395780732,0.44310807,118550.0,118540.0,1.80269402]
[1753395783730,0.42238304,118550.0,118540.0,1.80269402]
[1753395783935,0.41944593,118550.0,118540.0,1.80269402]
[1753395786335,0.44342593,118550.0,118540.0,1.80269402]
[1753395790539,0.41944593,118550.0,118540.0,1.80269402]
[1753395791542,0.39840304,118550.0,118540.0,1.80269402]
[1753395792245,0.41943788,118550.0,118540.0,1.80269402]
[1753395794253,0.23439438,118550.0,118540.0,1.80269402]
[1753395794553,0.35504788,118550.0,118540.0,1.80269402]
[1753395794851,0.32170788,118550.0,118540.0,1.81133679]
[1753395795046,0.15309438,118550.0,118540.0,1.81133679]
[1753395796052,0.32170788,118550.0,118540.0,1.80269402]
[1753395797555,0.40066788,118550.0,118540.0,1.80269402]
[1753395798856,0.41660788,118550.0,118540.0,1.80269402]
[1753395799551,0.41660788,118550.0,118540.0,1.21209402]
[1753395799757,0.41660788,118550.0,118540.0,1.80237402]
[1753395802754,0.41660788,118550.0,118540.0,1.21209402]
[1753395802948,0.41660788,118550.0,118540.0,1.80233402]
[1753395803750,0.41660788,118550.0,118540.0,1.21209402]
[1753395803940,0.44122788,118550.0,118540.0,0.5695377]
[1753395804145,1.0837842,118550.0,118540.0,0.04011]
[1753395804452,1.6739842,118550.0,118540.0,0.04011]
[1753395804954,1.39222788,118550.0,118540.0,0.04011]
[1753395807761,1.39222788,118550.0,118540.0,0.2087378]
[1753395808250,1.39228284,118550.0,118540.0,0.2087378]
[1753395810058,1.39228284,118550.0,118540.0,0.04011]
[1753395812462,1.39228284,118550.0,118540.0,0.2087377]
[1753395814956,1.39228284,118550.0,118540.0,0.04011]
[1753395816162,0.80208284,118550.0,118540.0,0.04011]
[1753395816365,1.39216284,118550.0,118540.0,0.04011]
[1753395816554,1.39216284,118550.0,118540.0,0.02416]
[1753395816967,1.67391916,118550.0,118540.0,0.02416]
[1753395817271,1.67391916,118550.0,118530.0,0.57293192]
[1753395817272,0.2164677,118540.0,118530.0,0.57293192]
[1753395817459,0.3092375,118540.0,118530.0,0.2911756]
[1753395817650,0.43600033,118540.0,118530.0,0.2911756]
[1753395818865,0.44000033,118540.0,118530.0,0.2911756]
[1753395819462,0.44100033,118540.0,118530.0,0.2911756]
[1753395826667,0.44100033,118540.0,118530.0,0.57293192]
[1753395828566,0.44100033,118540.0,118530.0,0.2911756]
[1753395829174,0.65240895,118540.0,118530.0,0.50258422]
[1753395830774,0.44100033,118540.0,118530.0,0.50258422]
[1753395830973,1.03088033,118540.0,118530.0,0.50258422]
[1753395832777,1.24228895,118540.0,118530.0,0.50258422]
[1753395834074,1.03088033,118540.0,118530.0,0.50258422]
[1753395836875,1.24228895,118540.0,118530.0,0.50258422]
[1753395837174,1.03088033,118540.0,118530.0,0.50258422]
[1753395839670,1.03088033,118540.0,118530.0,0.2911756]
[1753395840074,1.24228895,118540.0,118530.0,0.50258422]
[1753395840576,1.22119915,118540.0,118530.0,0.50258422]
[1753395840777,1.24234373,118540.0,118530.0,0.50258422]
[1753395842579,1.03093511,118540.0,118530.0,0.50258422]
[1753395842872,1.03093511,118540.0,118530.0,0.2911756]
[1753395843079,1.45343235,118540.0,118530.0,0.168642]
[1753395843278,1.24202373,118540.0,118530.0,0.38005062]
[1753395844081,1.24202373,118540.0,118530.0,0.40278062]
[1753395845080,1.03061511,118540.0,118530.0,0.40278062]
[1753395845274,1.24202373,118540.0,118530.0,0.40278062]
[1753395845471,1.81423235,118540.0,118530.0,0.23413862]
[1753395845672,1.81423235,118540.0,118530.0,0.21140862]
[1753395845869,1.64560465,118540.0,118520.0,0.44494642]
[1753395846078,0.86224062,118530.0,118520.0,0.24955862]
[1753395846274,0.8833852,118530.0,118520.0,0.24955862]
[1753395846479,1.01066047,118530.0,118520.0,0.41821482]
[1753395848583,0.79925185,118530.0,118520.0,0.4368442]
[1753395848790,0.02114458,118530.0,118520.0,2.2154873]
[1753395848977,0.02214458,118530.0,118520.0,2.3842313]
[1753395849186,0.02214458,118530.0,118520.0,1.67923988]
[1753395849978,0.004,118540.0,118530.0,0.1849019]
[1753395850180,0.004,118540.0,118530.0,0.85091205]
[1753395850379,0.004,118540.0,118530.0,1.47063205]
[1753395850581,0.04533385,118550.0,118540.0,0.1848877]
[1753395850884,0.73955,118560.0,118550.0,0.2083535]
[1753395851182,0.86619363,118560.0,118550.0,0.85088365]
[1753395852189,0.86719363,118560.0,118550.0,0.85088365]
[1753395852685,0.86655363,118560.0,118550.0,0.85088365]
[1753395853489,1.03515283,118560.0,118550.0,0.85088365]
[1753395853987,1.04115283,118560.0,118550.0,0.85088365]
[1753395855290,1.04115283,118560.0,118550.0,0.5691535]
[1753395855591,1.04115283,118560.0,118550.0,0.85088365]
[1753395859985,1.03855283,118560.0,118550.0,0.85088365]
[1753395861578,0.86891363,118560.0,118550.0,0.85088365]
[1753395861779,0.16591363,118560.0,118550.0,0.85088365]
[1753395861978,0.18663665,118560.0,118550.0,0.85088365]
[1753395862179,0.27441665,118560.0,118550.0,0.85088365]
[1753395862887,0.27441665,118560.0,118550.0,1.46636365]
[1753395865089,0.18663665,118560.0,118550.0,1.46636365]
[1753395866191,0.22079665,118560.0,118550.0,1.46636365]
[1753395867494,0.25898665,118560.0,118550.0,1.46636365]
[1753395867682,0.44301595,118560.0,118550.0,1.46636365]
[1753395867883,0.44301595,118560.0,118550.0,1.46452365]
[1753395869291,0.42229293,118560.0,118550.0,1.46452365]
[1753395869793,0.42229293,118560.0,118550.0,0.85088365]
[1753395875099,0.44021686,118560.0,118550.0,0.85088365]
[1753395877592,0.44021686,118560.0,118550.0,0.5691535]
[1753395877794,0.44021686,118560.0,118550.0,0.85088365]
[1753395880092,0.44021686,118560.0,118550.0,0.89628745]
[1753395880697,0.72199363,118560.0,118550.0,0.5691535]
[1753395880996,0.44026348,118560.0,118550.0,0.5691535]
[1753395881202,0.44026348,118560.0,118550.0,0.85088365]
[1753395881395,0.44026348,118560.0,118550.0,0.5691535]
[1753395881597,0.44026348,118560.0,118550.0,0.85088365]
[1753395887497,0.44026348,118560.0,118550.0,0.5691535]
[1753395887703,0.44026348,118560.0,118550.0,0.85088365]
[1753395893095,0.44026348,118560.0,118550.0,0.78047881]
[1753395895409,0.44026348,118560.0,118550.0,0.41967881]
[1753395895710,0.44026348,118560.0,118550.0,0.78047881]
[1753395899213,1.04566348,118560.0,118550.0,0.78047881]
[1753395900416,1.25698879,118560.0,118550.0,0.78047881]
[1753395906627,1.04566348,118560.0,118550.0,0.78047881]
[1753395906829,1.25698879,118560.0,118550.0,0.78047881]
[1753395909128,1.04566348,118560.0,118550.0,0.78047881]
[1753395909326,1.25698879,118560.0,118550.0,0.5691535]
[1753395909827,1.25698879,118560.0,118550.0,0.78047881]
[1753395910928,1.25698879,118560.0,118550.0,0.5691535]
[1753395911133,1.25698879,118560.0,118550.0,0.78047881]
[1753395914038,0.65158879,118560.0,118550.0,0.78047881]
[1753395914244,1.25226879,118560.0,118550.0,0.78047881]
[1753395917443,0.65158879,118560.0,118550.0,0.78047881]
[1753395917642,1.25186879,118560.0,118550.0,0.78047881]
[1753395918237,1.4631941,118560.0,118550.0,0.39619941]
[1753395918940,1.25186879,118560.0,118550.0,0.39619941]
[1753395920943,1.25186879,118560.0,118550.0,0.1848741]
[1753395921136,1.4631941,118560.0,118550.0,0.39619941]
[1753395922639,1.4631941,118560.0,118550.0,0.41952941]
[1753395922943,1.25186879,118560.0,118550.0,0.41952941]
[1753395929143,0.44026348,118560.0,118550.0,0.41952941]
[1753395929354,1.24886879,118560.0,118550.0,0.41952941]
[1753395929651,1.03754348,118560.0,118550.0,0.41952941]
[1753395929839,1.03754348,118560.0,118550.0,0.78032941]
[1753395932151,0.44026348,118560.0,118550.0,0.99165472]
[1753395932355,1.03718348,118560.0,118550.0,0.78032941]
[1753395934149,0.44026348,118560.0,118550.0,0.78032941]
[1753395934348,1.03710348,118560.0,118550.0,0.78032941]
[1753395934651,1.24842879,118560.0,118550.0,0.78032941]
[1753395934852,1.03710348,118560.0,118550.0,0.78032941]
[1753395935350,1.03710348,118560.0,118550.0,0.5690041]
[1753395935556,1.03710348,118560.0,118550.0,0.78032941]
[1753395936564,1.24842879,118560.0,118550.0,0.61171531]
[1753395936750,1.24842879,118560.0,118540.0,0.40058]
[1753395936751,0.2880547,118550.0,118540.0,0.40058]
[1753395936951,0.2158889,118540.0,118530.0,0.84125366]
[1753395937150,0.51736476,118540.0,118530.0,1.43729366]
[1753395937346,0.64323509,118540.0,118530.0,1.43729366]
[1753395938756,0.64423509,118540.0,118530.0,1.43729366]
[1753395939158,0.43690978,118540.0,118530.0,1.43729366]
[1753395939459,0.64823509,118540.0,118530.0,1.22596835]
[1753395939647,0.64823509,118540.0,118530.0,1.43729366]
[1753395939847,0.64823509,118540.0,118530.0,1.07649366]
[1753395940357,0.64823509,118540.0,118530.0,0.48045366]
[1753395940558,0.64823509,118540.0,118530.0,1.07593366]
[1753395941253,1.24367509,118540.0,118530.0,0.48045366]
[1753395941454,0.2149331,118530.0,118520.0,0.52848898]
[1753395941757,0.63927146,118530.0,118520.0,0.56304159]
[1753395942356,0.42794615,118530.0,118520.0,0.7743669]
[1753395942556,0.63927146,118530.0,118520.0,0.56304159]
[1753395942954,0.63927146,118530.0,118520.0,0.7743669]
[1753395943154,0.42994615,118530.0,118520.0,0.63363933]
[1753395943856,0.43094615,118530.0,118520.0,0.63363933]
[1753395945161,1.02566615,118530.0,118520.0,0.35171628]
[1753395945356,1.02566615,118530.0,118520.0,0.63363933]
[1753395947064,0.43094615,118530.0,118520.0,0.63363933]
[1753395947562,0.43094615,118530.0,118520.0,1.22775933]
[1753395948464,0.43094615,118530.0,118520.0,0.63363933]
[1753395948763,0.43094615,118530.0,118520.0,1.22771933]
[1753395949263,1.0736692,118530.0,118520.0,0.01862938]
[1753395950860,1.0746692,118530.0,118520.0,0.01862938]
[1753395951765,1.08299034,118530.0,118520.0,0.01862938]
[1753395952269,1.08699034,118530.0,118520.0,0.01862938]
[1753395952568,1.08999034,118530.0,118520.0,0.01862938]
[1753395952768,1.08199034,118530.0,118520.0,0.01862938]
[1753395953064,1.09099034,118530.0,118520.0,0.01862938]
[1753395953659,1.09099034,118530.0,118520.0,0.18728668]
[1753395954567,1.40286729,118530.0,118520.0,0.18728668]
[1753395954764,0.80906729,118530.0,118520.0,0.18728668]
[1753395954964,0.22476305,118530.0,118520.0,1.14987278]
[1753395955163,0.02997055,118530.0,118520.0,1.74367278]
[1753395955562,0.02997055,118530.0,118520.0,0.58602668]
[1753395955762,0.12924055,118530.0,118520.0,1.46246973]
[1753395956469,0.12424055,118530.0,118520.0,1.46246973]
[1753395956963,0.12024055,118530.0,118520.0,1.46246973]
[1753395957268,0.10727,118530.0,118520.0,1.46246973]
[1753395957969,0.06988,118530.0,118520.0,1.46246973]
[1753395958171,0.0363,118530.0,118520.0,1.46246973]
[1753395958367,0.01528,118530.0,118520.0,1.74439278]
[1753395958668,0.006,118530.0,118520.0,1.74439278]
[1753395959074,0.006,118530.0,118520.0,1.74539278]
[1753395959573,0.006,118530.0,118520.0,1.74639278]
[1753395960065,0.006,118530.0,118520.0,1.46446973]
[1753395962161,0.290153,118530.0,118520.0,0.22722668]
[1753395962373,0.41746603,118530.0,118520.0,0.22722668]
[1753395962573,1.03160995,118530.0,118520.0,0.22722668]
[1753395963667,0.43780995,118530.0,118520.0,0.22722668]
[1753395963868,1.03160995,118530.0,118520.0,0.22722668]
[1753395966868,1.39240995,118530.0,118520.0,0.22722668]
[1753395967363,1.313533,118530.0,118520.0,0.002]
[1753395967566,1.674333,118530.0,118520.0,0.002]
[1753395970582,2.093077,118530.0,118520.0,0.002]
[1753395970780,2.13841085,118530.0,118520.0,0.002]
[1753395970974,0.2166014,118510.0,118500.0,3.2530176]
[1753395971180,0.90204532,118510.0,118500.0,3.2530176]
[1753395971384,1.02899058,118510.0,118500.0,3.2530176]
[1753395971978,1.02999058,118510.0,118500.0,3.53594065]
[1753395972380,1.02999058,118510.0,118500.0,3.45159805]
[1753395972681,1.03199058,118510.0,118500.0,3.45159805]
[1753395972982,1.03199058,118510.0,118500.0,3.169675]
[1753395973282,1.67471363,118510.0,118500.0,3.001]
[1753395973584,0.43719058,118510.0,118500.0,4.42820865]
[1753395973786,0.26951918,118510.0,118500.0,4.42820865]
[1753395974174,0.27051918,118510.0,118500.0,4.42820865]
[1753395975781,0.43919058,118510.0,118500.0,4.42820865]
[1753395976382,0.43919058,118510.0,118500.0,3.5294856]
[1753395976584,0.27051918,118510.0,118500.0,3.5524856]
[1753395976778,0.43919058,118510.0,118500.0,3.83440865]
[1753395979483,0.43919058,118510.0,118500.0,3.5294856]
[1753395979683,0.43919058,118510.0,118500.0,3.5524856]
[1753395979885,0.43919058,118510.0,118500.0,3.83440865]
[1753395980085,0.43919058,118510.0,118500.0,3.5524856]
[1753395982188,0.43919058,118510.0,118500.0,3.83440865]
[1753395982384,1.31495363,118510.0,118500.0,3.1686856]
[1753395983683,1.03303058,118510.0,118500.0,3.1686856]
[1753395985092,1.03303058,118510.0,118500.0,3.45060865]
[1753395985894,1.03303058,118510.0,118500.0,3.1686856]
[1753395987395,1.04140875,118510.0,118500.0,3.1686856]
[1753395988287,1.04140875,118510.0,118500.0,3.45060865]
[1753395989697,0.44756875,118510.0,118500.0,3.45060865]
[1753395989895,1.04136875,118510.0,118500.0,3.45060865]
[1753395991200,1.04136875,118510.0,118500.0,3.47360865]
[1753395997001,1.04036875,118510.0,118500.0,3.47360865]
[1753395997299,1.04136875,118510.0,118500.0,3.47360865]
[1753395998698,1.03836875,118510.0,118500.0,3.47360865]
[1753395998891,1.04536875,118510.0,118500.0,3.30492305]
[1753395999200,1.04536875,118510.0,118500.0,3.47360865]
[1753395999991,1.04536875,118510.0,118500.0,3.1916856]
[1753396000196,1.04536875,118510.0,118500.0,3.47360865]
[1753396000399,1.04536875,118510.0,118500.0,3.1916856]
[1753396007406,1.03570875,118510.0,118500.0,3.1916856]
[1753396010714,0.92585875,118510.0,118500.0,3.83440865]
[1753396010907,0.33233875,118510.0,118500.0,4.42792865]
[1753396013606,0.80264058,118510.0,118500.0,3.023]
[1753396013908,1.12989748,118510.0,118500.0,3.023]
[1753396016015,1.12989748,118510.0,118500.0,2.092]
[1753396017509,1.13818661,118510.0,118500.0,2.092]
[1753396020913,1.13818661,118510.0,118500.0,2.11487]
[1753396022806,1.13818661,118510.0,118500.0,2.092]
[1753396023210,1.13818661,118510.0,118500.0,2.11487]
[1753396026713,0.69304971,118510.0,118500.0,2.11487]
[1753396027022,0.73838356,118510.0,118500.0,2.56547855]
[1753396027213,0.68476058,118510.0,118500.0,2.2835555]
[1753396027414,0.73009443,118510.0,118500.0,2.56547855]
[1753396027621,0.73009423,118510.0,118500.0,2.56547855]
[1753396027823,1.29116038,118510.0,118500.0,2.56547855]
[1753396028118,0.76168918,118510.0,118500.0,2.6443555]
[1753396028317,0.76168918,118510.0,118500.0,2.92627855]
[1753396028516,0.20062303,118510.0,118500.0,3.53251855]
[1753396029318,0.20062303,118510.0,118500.0,3.53587855]
[1753396029521,0.15528918,118510.0,118500.0,3.53587855]
[1753396030025,0.32396028,118510.0,118500.0,3.53587855]
[1753396031124,0.15528918,118510.0,118500.0,3.53587855]
[1753396032119,0.60588373,118510.0,118500.0,2.6477155]
[1753396032423,0.67296373,118510.0,118500.0,3.2529555]
[1753396032623,0.71308373,118510.0,118500.0,3.2529555]
[1753396034130,0.71308373,118510.0,118500.0,2.6477155]
[1753396034323,0.67243373,118510.0,118500.0,2.6477155]
[1753396034521,0.15528918,118510.0,118500.0,2.92963855]
[1753396035528,0.11271918,118510.0,118500.0,3.53403855]
[1753396036319,0.11271918,118510.0,118500.0,3.54722458]
[1753396036518,0.11271918,118510.0,118500.0,3.53403855]
[1753396040030,0.28139068,118510.0,118500.0,3.53403855]
[1753396041230,0.11271918,118510.0,118500.0,3.53403855]
[1753396041929,0.58657373,118510.0,118500.0,2.47903]
[1753396042124,0.58657373,118510.0,118500.0,3.2503157]
[1753396042731,0.30465068,118510.0,118500.0,3.2503157]
[1753396043228,0.66545068,118510.0,118500.0,2.72083]
[1753396043418,0.30465068,118510.0,118500.0,2.8895156]
[1753396043621,0.68200068,118510.0,118500.0,2.2869156]
[1753396043822,0.76594068,118510.0,118500.0,2.2869156]
[1753396044424,0.40514068,118510.0,118500.0,2.2869156]
[1753396044631,0.76594068,118510.0,118500.0,2.2869156]
[1753396045528,0.40514068,118510.0,118500.0,2.2869156]
[1753396045736,1.00762068,118510.0,118500.0,2.2869156]
[1753396049822,0.99023068,118510.0,118500.0,2.56883865]
[1753396051430,1.00934194,118510.0,118500.0,2.56883865]
[1753396051733,1.00934194,118510.0,118500.0,3.16975865]
[1753396052930,1.00934194,118510.0,118500.0,2.58202607]
[1753396053135,1.02673194,118510.0,118500.0,2.90018302]
[1753396054636,1.02673194,118510.0,118500.0,2.30010302]
[1753396054836,1.02673194,118510.0,118500.0,2.10854742]
[1753396055232,1.30865499,118510.0,118500.0,2.27723352]
[1753396056035,1.02673194,118510.0,118500.0,2.27723352]
[1753396057935,1.66945499,118510.0,118500.0,2.092]
[1753396058638,1.71478884,118510.0,118500.0,2.092]
[1753396061742,1.71478884,118510.0,118500.0,2.09511]
[1753396065247,1.66945499,118510.0,118500.0,2.09511]
[1753396065843,1.71478884,118510.0,118500.0,2.09511]